[Event "Live Chess"]
[Site "Chess.com"]
[Date "2023.05.21"]
[Round "-"]
[White "Doge_Dandolo"]
[Black "laminaaprod"]
[Result "0-1"]
[WhiteElo "1930"]
[BlackElo "2250"]
[TimeControl "300"]
[EndTime "17:53:46 PDT"]
[Termination "laminaaprod won by resignation"]

1. Nf3 {[%clk 0:04:59.2]} 1... d5 {[%clk 0:04:58.7]} 2. d4 {[%clk 0:04:57.9]}
2... e6 {[%clk 0:04:58.3]} 3. g3 {[%clk 0:04:55.9]} 3... c5 {[%clk 0:04:57.9]}
4. Bg2 {[%clk 0:04:54.1]} 4... Nc6 {[%clk 0:04:57]} 5. O-O {[%clk 0:04:52.8]}
5... Nf6 {[%clk 0:04:51.7]} 6. c4 {[%clk 0:04:51.9]} 6... Be7 {[%clk 0:04:41.7]}
7. cxd5 {[%clk 0:04:50.4]} 7... exd5 {[%clk 0:04:41.6]} 8. dxc5 {[%clk
0:04:49.5]} 8... Bxc5 {[%clk 0:04:40.1]} 9. Bg5 {[%clk 0:04:39.9]} 9... d4
{[%clk 0:04:36.3]} 10. a3 {[%clk 0:04:28.3]} 10... O-O {[%clk 0:04:33.3]} 11. b4
{[%clk 0:04:26.3]} 11... Bb6 {[%clk 0:04:29.2]} 12. Nbd2 {[%clk 0:04:24.9]}
12... h6 {[%clk 0:04:19.7]} 13. Bxf6 {[%clk 0:04:23]} 13... Qxf6 {[%clk
0:04:18.1]} 14. Nb3 {[%clk 0:04:22.1]} 14... a6 {[%clk 0:04:03.7]} 15. Qd2
{[%clk 0:04:14.7]} 15... Bg4 {[%clk 0:03:46.8]} 16. Rfd1 {[%clk 0:04:10.7]}
16... Rad8 {[%clk 0:03:44.4]} 17. Rac1 {[%clk 0:04:07.1]} 17... Rfe8 {[%clk
0:03:35.2]} 18. h3 {[%clk 0:04:04.4]} 18... Bh5 {[%clk 0:03:32.5]} 19. Nc5
{[%clk 0:03:59.5]} 19... Re7 {[%clk 0:03:12]} 20. g4 {[%clk 0:03:52.4]} 20...
Bg6 {[%clk 0:03:10]} 21. Ne1 {[%clk 0:03:45.5]} 21... Bxc5 {[%clk 0:02:52.3]}
22. Rxc5 {[%clk 0:03:43.4]} 22... Ne5 {[%clk 0:02:41]} 23. Nf3 {[%clk
0:03:36.7]} 23... Nxf3+ {[%clk 0:02:30.3]} 24. Bxf3 {[%clk 0:03:35.2]} 24... d3
{[%clk 0:02:29.8]} 25. exd3 {[%clk 0:03:28]} 25... Qxf3 {[%clk 0:02:28]} 0-1

[Event "Live Chess"]
[Site "Chess.com"]
[Date "2023.05.21"]
[Round "-"]
[White "Missedidea"]
[Black "Fazer180"]
[Result "1/2-1/2"]
[WhiteElo "1834"]
[BlackElo "1744"]
[TimeControl "300"]
[EndTime "17:53:57 PDT"]
[Termination "Game drawn by repetition"]

1. d4 {[%clk 0:04:58.8]} 1... e6 {[%clk 0:04:58.3]} 2. c4 {[%clk 0:04:57.6]}
2... d5 {[%clk 0:04:57.8]} 3. Nc3 {[%clk 0:04:56.2]} 3... Nf6 {[%clk 0:04:57.7]}
4. Bg5 {[%clk 0:04:53.8]} 4... Be7 {[%clk 0:04:55.7]} 5. e3 {[%clk 0:04:52.8]}
5... O-O {[%clk 0:04:53]} 6. Nf3 {[%clk 0:04:51.5]} 6... h6 {[%clk 0:04:51.4]}
7. Bh4 {[%clk 0:04:49.8]} 7... c6 {[%clk 0:04:50.3]} 8. Rc1 {[%clk 0:04:47.1]}
8... Nbd7 {[%clk 0:04:45.8]} 9. Bd3 {[%clk 0:04:45.9]} 9... dxc4 {[%clk
0:04:39.2]} 10. Bxc4 {[%clk 0:04:43.9]} 10... Nb6 {[%clk 0:04:39.1]} 11. Bb3
{[%clk 0:04:41.3]} 11... Nfd5 {[%clk 0:04:23.8]} 12. Bxe7 {[%clk 0:04:38.4]}
12... Qxe7 {[%clk 0:04:17]} 13. O-O {[%clk 0:04:36.9]} 13... Nxc3 {[%clk
0:04:13.6]} 14. bxc3 {[%clk 0:04:35.1]} 14... c5 {[%clk 0:04:06.5]} 15. c4
{[%clk 0:04:31.2]} 15... cxd4 {[%clk 0:04:00.9]} 16. exd4 {[%clk 0:04:29.4]}
16... Rd8 {[%clk 0:03:59.8]} 17. Qe2 {[%clk 0:04:23.1]} 17... Qf6 {[%clk
0:03:43.6]} 18. Rfd1 {[%clk 0:04:20.6]} 18... Bd7 {[%clk 0:03:38.7]} 19. d5
{[%clk 0:04:16.3]} 19... exd5 {[%clk 0:03:35.9]} 20. cxd5 {[%clk 0:04:14.4]}
20... Rac8 {[%clk 0:03:25.5]} 21. Rxc8 {[%clk 0:04:03]} 21... Rxc8 {[%clk
0:03:25.4]} 22. Qe5 {[%clk 0:03:57.4]} 22... Qxe5 {[%clk 0:02:49.8]} 23. Nxe5
{[%clk 0:03:55.1]} 23... Ba4 {[%clk 0:02:44.9]} 24. d6 {[%clk 0:03:46.8]} 24...
Bxb3 {[%clk 0:02:35.7]} 25. axb3 {[%clk 0:03:44.9]} 25... Rd8 {[%clk 0:02:29.9]}
26. f4 {[%clk 0:03:34.5]} 26... Nc8 {[%clk 0:02:18.6]} 27. Nc4 {[%clk 0:03:16]}
27... b5 {[%clk 0:02:12.1]} 28. d7 {[%clk 0:03:12.3]} 28... bxc4 {[%clk
0:02:02.7]} 29. dxc8=Q {[%clk 0:03:09.3]} 29... Rxc8 {[%clk 0:02:01.3]} 30. Rc1
{[%clk 0:02:55.2]} 30... c3 {[%clk 0:01:59.6]} 31. Kf2 {[%clk 0:02:53.7]} 31...
Kf8 {[%clk 0:01:50.7]} 32. Ke3 {[%clk 0:02:52.5]} 32... Ke7 {[%clk 0:01:50.1]}
33. Kd3 {[%clk 0:02:51.2]} 33... c2 {[%clk 0:01:46.7]} 34. Rxc2 {[%clk
0:02:49.9]} 34... Rxc2 {[%clk 0:01:45.4]} 35. Kxc2 {[%clk 0:02:48.8]} 35... Kd6
{[%clk 0:01:44.3]} 36. Kd3 {[%clk 0:02:47.8]} 36... Kc5 {[%clk 0:01:32.7]} 37.
g4 {[%clk 0:02:40.2]} 37... a5 {[%clk 0:01:17.2]} 38. h4 {[%clk 0:02:36.7]}
38... g6 {[%clk 0:01:06.3]} 39. h5 {[%clk 0:02:31.4]} 39... gxh5 {[%clk
0:01:01.8]} 40. gxh5 {[%clk 0:02:28.8]} 40... f5 {[%clk 0:01:00.3]} 41. Kc3
{[%clk 0:02:23.1]} 41... Kb5 {[%clk 0:00:56.7]} 42. Kc2 {[%clk 0:02:16.2]} 42...
Kb4 {[%clk 0:00:52.3]} 43. Kb2 {[%clk 0:02:15]} 43... Kc5 {[%clk 0:00:46.2]} 44.
Kc3 {[%clk 0:02:12.1]} 44... Kd5 {[%clk 0:00:40.5]} 45. Kd3 {[%clk 0:02:11]}
45... Kc5 {[%clk 0:00:40]} 46. Kc3 {[%clk 0:02:09.5]} 1/2-1/2

[Event "Live Chess"]
[Site "Chess.com"]
[Date "2023.05.21"]
[Round "-"]
[White "domrobson"]
[Black "jimwad"]
[Result "1-0"]
[WhiteElo "1739"]
[BlackElo "1253"]
[TimeControl "300"]
[EndTime "17:53:58 PDT"]
[Termination "domrobson won by resignation"]

1. d4 {[%clk 0:04:58.8]} 1... d5 {[%clk 0:04:58.8]} 2. c4 {[%clk 0:04:58]} 2...
c6 {[%clk 0:04:58]} 3. Nf3 {[%clk 0:04:57.4]} 3... Nf6 {[%clk 0:04:54.9]} 4. Nc3
{[%clk 0:04:56.6]} 4... Bf5 {[%clk 0:04:53.5]} 5. Qb3 {[%clk 0:04:54.1]} 5...
Qd7 {[%clk 0:04:49.9]} 6. Ne5 {[%clk 0:04:51]} 6... Qc7 {[%clk 0:04:46.9]} 7.
cxd5 {[%clk 0:04:49.9]} 7... cxd5 {[%clk 0:04:45.2]} 8. e4 {[%clk 0:04:42.1]}
8... dxe4 {[%clk 0:04:42.8]} 9. Qxf7+ {[%clk 0:04:40.3]} 9... Kd8 {[%clk
0:04:41.2]} 10. Bd2 {[%clk 0:04:31.6]} 10... Nbd7 {[%clk 0:04:32.5]} 11. Nxd7
{[%clk 0:04:15.9]} 11... Qxd7 {[%clk 0:04:30.1]} 12. d5 {[%clk 0:04:07.8]} 12...
e6 {[%clk 0:04:26.6]} 13. dxe6 {[%clk 0:04:02]} 13... Qxf7 {[%clk 0:04:24.2]}
14. exf7 {[%clk 0:04:00.7]} 14... Ke7 {[%clk 0:04:23.1]} 15. Bc4 {[%clk
0:03:59]} 15... Rc8 {[%clk 0:04:19.5]} 16. Bb3 {[%clk 0:03:57]} 16... Be6 {[%clk
0:04:14.9]} 17. Bxe6 {[%clk 0:03:51.3]} 17... Kxe6 {[%clk 0:04:13.6]} 18. O-O
{[%clk 0:03:49.9]} 18... Kxf7 {[%clk 0:04:12.3]} 19. Rfe1 {[%clk 0:03:48.7]}
19... Bc5 {[%clk 0:04:08]} 20. Nxe4 {[%clk 0:03:45.6]} 20... Nxe4 {[%clk
0:04:04.8]} 21. Rxe4 {[%clk 0:03:44.2]} 21... Rhf8 {[%clk 0:04:02.8]} 22. Bb4
{[%clk 0:03:40.2]} 22... Bxf2+ {[%clk 0:03:58.6]} 23. Kxf2 {[%clk 0:03:36.6]}
23... Kg8+ {[%clk 0:03:57.6]} 24. Bxf8 {[%clk 0:03:33.6]} 24... Rxf8+ {[%clk
0:03:55.5]} 25. Ke3 {[%clk 0:03:32.8]} 1-0

[Event "Live Chess"]
[Site "Chess.com"]
[Date "2023.05.21"]
[Round "-"]
[White "xx_blindpuffin_xx"]
[Black "Jo1ts"]
[Result "1-0"]
[WhiteElo "2196"]
[BlackElo "820"]
[TimeControl "300"]
[EndTime "17:54:16 PDT"]
[Termination "xx_blindpuffin_xx won by checkmate"]

1. e4 {[%clk 0:04:44.6]} 1... d5 {[%clk 0:04:57.7]} 2. exd5 {[%clk 0:04:42.4]}
2... Qxd5 {[%clk 0:04:57.6]} 3. Nc3 {[%clk 0:04:41.8]} 3... Qd8 {[%clk
0:04:56.4]} 4. Nf3 {[%clk 0:04:40.8]} 4... Nf6 {[%clk 0:04:55.6]} 5. d4 {[%clk
0:04:39.8]} 5... Bg4 {[%clk 0:04:51.5]} 6. Be2 {[%clk 0:04:38.8]} 6... g6 {[%clk
0:04:50.3]} 7. O-O {[%clk 0:04:37.6]} 7... Bg7 {[%clk 0:04:49.5]} 8. h3 {[%clk
0:04:36.9]} 8... Bxf3 {[%clk 0:04:45.7]} 9. Bxf3 {[%clk 0:04:36.8]} 9... O-O
{[%clk 0:04:44.6]} 10. Ne2 {[%clk 0:04:30]} 10... Nbd7 {[%clk 0:04:39.6]} 11.
Bf4 {[%clk 0:04:25.1]} 11... Re8 {[%clk 0:04:34.4]} 12. c4 {[%clk 0:04:22.2]}
12... e5 {[%clk 0:04:33.1]} 13. dxe5 {[%clk 0:04:18.1]} 13... Nxe5 {[%clk
0:04:33]} 14. Bxe5 {[%clk 0:04:17.5]} 14... Rxe5 {[%clk 0:04:29.1]} 15. Nc3
{[%clk 0:03:59.2]} 15... c6 {[%clk 0:04:22.4]} 16. Qb3 {[%clk 0:03:57.7]} 16...
Rb8 {[%clk 0:04:07.7]} 17. Rfd1 {[%clk 0:03:49.9]} 17... Qb6 {[%clk 0:03:57.7]}
18. Qc2 {[%clk 0:03:46.7]} 18... Rbe8 {[%clk 0:03:49.6]} 19. Rac1 {[%clk
0:03:39.1]} 19... Rc5 {[%clk 0:03:41.6]} 20. Na4 {[%clk 0:03:36]} 20... Qb4
{[%clk 0:03:31.6]} 21. Nxc5 {[%clk 0:03:32.3]} 21... Qxc5 {[%clk 0:03:29.2]} 22.
a3 {[%clk 0:03:29.5]} 22... Bh6 {[%clk 0:03:09.9]} 23. b4 {[%clk 0:03:23.3]}
23... Qe7 {[%clk 0:02:57.2]} 24. Rb1 {[%clk 0:03:20.7]} 24... Nd7 {[%clk
0:02:50.8]} 25. g3 {[%clk 0:03:14.9]} 25... Qe6 {[%clk 0:02:44]} 26. Bg2 {[%clk
0:03:11.5]} 26... Nf6 {[%clk 0:02:39.4]} 27. c5 {[%clk 0:03:09.8]} 27... Nh5
{[%clk 0:02:31.8]} 28. Rd6 {[%clk 0:03:02.1]} 28... Qe5 {[%clk 0:02:20.2]} 29.
Rd7 {[%clk 0:02:57]} 29... Qe2 {[%clk 0:02:02.8]} 30. Qxe2 {[%clk 0:02:51.8]}
30... Rxe2 {[%clk 0:02:02.7]} 31. Rxb7 {[%clk 0:02:50.6]} 31... a6 {[%clk
0:01:59.2]} 32. Bxc6 {[%clk 0:02:47.4]} 32... Ra2 {[%clk 0:01:56.5]} 33. Bd5
{[%clk 0:02:43.4]} 33... Rxa3 {[%clk 0:01:54.9]} 34. Rxf7 {[%clk 0:02:39.8]}
34... Kh8 {[%clk 0:01:51.6]} 35. Re1 {[%clk 0:02:36.2]} 35... Ng7 {[%clk
0:01:45.8]} 36. Rf8# {[%clk 0:02:34]} 1-0

[Event "Live Chess"]
[Site "Chess.com"]
[Date "2023.05.21"]
[Round "-"]
[White "romchyk1219"]
[Black "CheckThis4"]
[Result "0-1"]
[WhiteElo "634"]
[BlackElo "2513"]
[TimeControl "300"]
[EndTime "17:54:27 PDT"]
[Termination "CheckThis4 won by checkmate"]

1. e4 {[%clk 0:04:57.9]} 1... d5 {[%clk 0:04:57.7]} 2. d4 {[%clk 0:04:56.5]}
2... dxe4 {[%clk 0:04:55.7]} 3. Nc3 {[%clk 0:04:55.4]} 3... e5 {[%clk
0:04:53.2]} 4. dxe5 {[%clk 0:04:53.4]} 4... Qxd1+ {[%clk 0:04:51.6]} 5. Nxd1
{[%clk 0:04:52.6]} 5... Nc6 {[%clk 0:04:50.1]} 6. f3 {[%clk 0:04:49.3]} 6...
Nxe5 {[%clk 0:04:47.5]} 7. fxe4 {[%clk 0:04:48]} 7... Nf6 {[%clk 0:04:47.2]} 8.
Nc3 {[%clk 0:04:44.4]} 8... Bb4 {[%clk 0:04:45.1]} 9. Bd3 {[%clk 0:04:41.1]}
9... Bg4 {[%clk 0:04:41]} 10. Bf4 {[%clk 0:04:31.3]} 10... Nxd3+ {[%clk
0:04:35.1]} 11. cxd3 {[%clk 0:04:29.8]} 11... O-O-O {[%clk 0:04:34.7]} 12. Nf3
{[%clk 0:04:22.1]} 12... Rxd3 {[%clk 0:04:30.7]} 13. O-O {[%clk 0:04:12.2]}
13... Bxc3 {[%clk 0:04:23.5]} 14. bxc3 {[%clk 0:04:11.3]} 14... Rxc3 {[%clk
0:04:16.4]} 15. Ng5 {[%clk 0:04:01.6]} 15... Re8 {[%clk 0:04:09.4]} 16. e5
{[%clk 0:03:58.3]} 16... Nd5 {[%clk 0:04:06.1]} 17. Bd2 {[%clk 0:03:42.9]} 17...
Rc2 {[%clk 0:04:03.3]} 18. Ba5 {[%clk 0:03:34.2]} 18... b6 {[%clk 0:04:01]} 19.
Be1 {[%clk 0:03:33]} 19... Rxe5 {[%clk 0:03:56.4]} 20. Nxf7 {[%clk 0:03:31.4]}
20... Ree2 {[%clk 0:03:54.9]} 21. Rf2 {[%clk 0:03:24.6]} 21... h5 {[%clk
0:03:38.8]} 22. h3 {[%clk 0:03:17.4]} 22... Bd7 {[%clk 0:03:34.9]} 23. Rxe2
{[%clk 0:03:08.4]} 23... Rxe2 {[%clk 0:03:33]} 24. Bg3 {[%clk 0:02:58.4]} 24...
Ne3 {[%clk 0:03:22.5]} 25. Re1 {[%clk 0:02:46.5]} 25... Rxg2+ {[%clk 0:03:19.7]}
26. Kh1 {[%clk 0:02:44.7]} 26... Rxg3 {[%clk 0:03:19.3]} 27. Ng5 {[%clk
0:02:28.5]} 27... Bc6+ {[%clk 0:03:15.2]} 28. Kh2 {[%clk 0:02:24.8]} 28... Rg2+
{[%clk 0:03:14.3]} 29. Kh1 {[%clk 0:02:23.6]} 29... Rxg5+ {[%clk 0:03:13.5]} 30.
Kh2 {[%clk 0:02:22.4]} 30... Rg2+ {[%clk 0:03:12.6]} 31. Kh1 {[%clk 0:02:21.6]}
31... Nf5 {[%clk 0:03:11.6]} 32. Rg1 {[%clk 0:02:15]} 32... Ng3# {[%clk
0:03:10.5]} 0-1

[Event "Live Chess"]
[Site "Chess.com"]
[Date "2023.05.21"]
[Round "-"]
[White "blowerd"]
[Black "grillage"]
[Result "0-1"]
[WhiteElo "1392"]
[BlackElo "1802"]
[TimeControl "300"]
[EndTime "17:54:36 PDT"]
[Termination "grillage won by checkmate"]

1. e4 {[%clk 0:04:58]} 1... d5 {[%clk 0:04:56.1]} 2. exd5 {[%clk 0:04:55.6]}
2... Qxd5 {[%clk 0:04:55]} 3. Nc3 {[%clk 0:04:55.1]} 3... Qd8 {[%clk 0:04:53.3]}
4. d4 {[%clk 0:04:54]} 4... Nf6 {[%clk 0:04:52.3]} 5. Bc4 {[%clk 0:04:52.6]}
5... a6 {[%clk 0:04:50.3]} 6. Nf3 {[%clk 0:04:51.6]} 6... b5 {[%clk 0:04:49.5]}
7. Bb3 {[%clk 0:04:50.6]} 7... c5 {[%clk 0:04:48.7]} 8. dxc5 {[%clk 0:04:47.4]}
8... Qxd1+ {[%clk 0:04:47.6]} 9. Nxd1 {[%clk 0:04:43.2]} 9... e6 {[%clk
0:04:47.1]} 10. Be3 {[%clk 0:04:35]} 10... Bb7 {[%clk 0:04:46.1]} 11. Nc3 {[%clk
0:04:08.7]} 11... Nbd7 {[%clk 0:04:35.8]} 12. O-O-O {[%clk 0:04:02.5]} 12...
Bxc5 {[%clk 0:04:31.9]} 13. Bxc5 {[%clk 0:03:58.4]} 13... Nxc5 {[%clk
0:04:30.7]} 14. Rhe1 {[%clk 0:03:49.8]} 14... O-O {[%clk 0:04:28.5]} 15. Ng5
{[%clk 0:03:36.9]} 15... h6 {[%clk 0:04:21]} 16. Nge4 {[%clk 0:03:29.9]} 16...
Ncxe4 {[%clk 0:04:09.6]} 17. Nxe4 {[%clk 0:03:19.4]} 17... Bxe4 {[%clk
0:04:06.2]} 18. Rd4 {[%clk 0:03:13]} 18... Bd5 {[%clk 0:04:03.9]} 19. Bxd5
{[%clk 0:03:06]} 19... Nxd5 {[%clk 0:04:02.4]} 20. c4 {[%clk 0:03:02.6]} 20...
bxc4 {[%clk 0:04:00.4]} 21. Rxc4 {[%clk 0:03:01.2]} 21... Rfc8 {[%clk
0:03:59.1]} 22. Rxc8+ {[%clk 0:02:58.4]} 22... Rxc8+ {[%clk 0:03:58.1]} 23. Kb1
{[%clk 0:02:57.1]} 23... g6 {[%clk 0:03:48.2]} 24. b3 {[%clk 0:02:55.9]} 24...
Kg7 {[%clk 0:03:47.2]} 25. Re2 {[%clk 0:02:53.3]} 25... Nc3+ {[%clk 0:03:43.3]}
26. Kb2 {[%clk 0:02:49.2]} 26... Nxe2 {[%clk 0:03:42.2]} 27. f3 {[%clk 0:02:47]}
27... Nf4 {[%clk 0:03:40]} 28. g3 {[%clk 0:02:43.7]} 28... Nd3+ {[%clk
0:03:38.2]} 29. Ka3 {[%clk 0:02:41.4]} 29... Rc5 {[%clk 0:03:31.3]} 30. b4
{[%clk 0:02:39.6]} 30... Rc4 {[%clk 0:03:25.3]} 31. Kb3 {[%clk 0:02:36.9]} 31...
Rc1 {[%clk 0:03:15.9]} 32. a4 {[%clk 0:02:34.3]} 32... Rb1+ {[%clk 0:03:09.3]}
33. Kc4 {[%clk 0:02:33.2]} 33... Nxb4 {[%clk 0:03:07.3]} 34. a5 {[%clk
0:02:31.5]} 34... Nc6 {[%clk 0:03:05.5]} 35. Kc5 {[%clk 0:02:30.2]} 35... Nxa5
{[%clk 0:03:04.6]} 36. f4 {[%clk 0:02:27.3]} 36... Nb3+ {[%clk 0:03:03.4]} 37.
Kd6 {[%clk 0:02:25.3]} 37... Nd4 {[%clk 0:03:01.9]} 38. h4 {[%clk 0:02:21.1]}
38... Nf5+ {[%clk 0:02:59.1]} 39. Kc5 {[%clk 0:02:18.2]} 39... Nxg3 {[%clk
0:02:58.7]} 40. Kd6 {[%clk 0:02:16.9]} 40... Nf5+ {[%clk 0:02:57]} 41. Ke5
{[%clk 0:02:15.9]} 41... Nxh4 {[%clk 0:02:56.6]} 42. f5 {[%clk 0:02:14.1]} 42...
Nxf5 {[%clk 0:02:54.4]} 43. Ke4 {[%clk 0:02:10.2]} 43... a5 {[%clk 0:02:53.1]}
44. Ke5 {[%clk 0:02:08.8]} 44... a4 {[%clk 0:02:52.6]} 45. Ke4 {[%clk
0:02:07.8]} 45... a3 {[%clk 0:02:52.1]} 46. Ke5 {[%clk 0:02:04.4]} 46... a2
{[%clk 0:02:51.4]} 47. Kf4 {[%clk 0:02:02.7]} 47... a1=Q {[%clk 0:02:48.6]} 48.
Ke4 {[%clk 0:02:01.7]} 48... Qa5 {[%clk 0:02:42.4]} 49. Kf4 {[%clk 0:01:59.6]}
49... Rb4+ {[%clk 0:02:40.6]} 50. Kf3 {[%clk 0:01:58.1]} 50... Qa3+ {[%clk
0:02:39.8]} 51. Ke2 {[%clk 0:01:57.3]} 51... Rb2+ {[%clk 0:02:39.2]} 52. Kd1
{[%clk 0:01:56.5]} 52... Qa1# {[%clk 0:02:38.5]} 0-1

[Event "Live Chess"]
[Site "Chess.com"]
[Date "2023.05.21"]
[Round "-"]
[White "LodeshChess"]
[Black "smoggyrabbit"]
[Result "0-1"]
[WhiteElo "1159"]
[BlackElo "1748"]
[TimeControl "300"]
[EndTime "17:54:40 PDT"]
[Termination "smoggyrabbit won by resignation"]

1. e4 {[%clk 0:04:58.2]} 1... e6 {[%clk 0:04:59.2]} 2. d4 {[%clk 0:04:56.4]}
2... d5 {[%clk 0:04:58.4]} 3. e5 {[%clk 0:04:56.1]} 3... c5 {[%clk 0:04:57]} 4.
c3 {[%clk 0:04:55.8]} 4... Nc6 {[%clk 0:04:56.2]} 5. Nf3 {[%clk 0:04:55.5]} 5...
Bd7 {[%clk 0:04:55.5]} 6. Bd3 {[%clk 0:04:54.7]} 6... Rc8 {[%clk 0:04:54.8]} 7.
O-O {[%clk 0:04:50.5]} 7... cxd4 {[%clk 0:04:53.9]} 8. cxd4 {[%clk 0:04:46.3]}
8... Nb4 {[%clk 0:04:53]} 9. a3 {[%clk 0:04:39.7]} 9... Nxd3 {[%clk 0:04:49.5]}
10. Qxd3 {[%clk 0:04:39.3]} 10... Ne7 {[%clk 0:04:43.7]} 11. b4 {[%clk
0:04:37.5]} 11... Nf5 {[%clk 0:04:41.7]} 12. Bg5 {[%clk 0:04:31.3]} 12... Be7
{[%clk 0:04:33]} 13. Bxe7 {[%clk 0:04:29.5]} 13... Qxe7 {[%clk 0:04:32.5]} 14.
Nc3 {[%clk 0:04:18.8]} 14... O-O {[%clk 0:04:29.9]} 15. Ne2 {[%clk 0:04:16.6]}
15... a6 {[%clk 0:04:23.3]} 16. Rac1 {[%clk 0:04:15.5]} 16... Bb5 {[%clk
0:04:21.7]} 17. Qd2 {[%clk 0:04:11.7]} 17... Qd7 {[%clk 0:04:03.2]} 18. Rxc8
{[%clk 0:04:06.2]} 18... Rxc8 {[%clk 0:04:01.7]} 19. Rc1 {[%clk 0:04:05.6]}
19... Rxc1+ {[%clk 0:03:45.7]} 20. Nxc1 {[%clk 0:04:04.3]} 20... Qc6 {[%clk
0:03:41.6]} 21. Nb3 {[%clk 0:03:59.5]} 21... Qc4 {[%clk 0:03:34.1]} 22. Qd1
{[%clk 0:03:48.5]} 22... Ba4 {[%clk 0:03:28.5]} 23. Nfd2 {[%clk 0:03:44.4]}
23... Qd3 {[%clk 0:03:20.1]} 24. Nc5 {[%clk 0:03:24.9]} 24... Bxd1 {[%clk
0:03:12.9]} 25. Nxd3 {[%clk 0:03:23.9]} 25... Nxd4 {[%clk 0:03:11.7]} 26. Nc5
{[%clk 0:03:19]} 26... Nc2 {[%clk 0:03:06.3]} 27. Nxb7 {[%clk 0:03:06.8]} 27...
Nxa3 {[%clk 0:03:05.2]} 28. Nc5 {[%clk 0:02:57.1]} 28... Be2 {[%clk 0:02:59.3]}
29. Ndb3 {[%clk 0:02:49.7]} 29... Nc2 {[%clk 0:02:54.7]} 30. b5 {[%clk
0:02:18.8]} 30... axb5 {[%clk 0:02:44.1]} 31. f3 {[%clk 0:02:04.7]} 31... Kf8
{[%clk 0:02:24]} 32. Kf2 {[%clk 0:02:04]} 32... Bc4 {[%clk 0:02:22.1]} 33. f4
{[%clk 0:01:56.3]} 33... Ke7 {[%clk 0:02:17.5]} 34. g3 {[%clk 0:01:53.5]} 34...
Kd8 {[%clk 0:02:04.3]} 35. h4 {[%clk 0:01:44.8]} 35... Kc7 {[%clk 0:02:01.8]}
36. Na6+ {[%clk 0:01:36.5]} 36... Kb6 {[%clk 0:01:58.5]} 37. Nac5 {[%clk
0:01:34.7]} 37... b4 {[%clk 0:01:51.3]} 38. Kf3 {[%clk 0:01:18.2]} 38... Kb5
{[%clk 0:01:48]} 39. Kg4 {[%clk 0:01:14.4]} 39... Bxb3 {[%clk 0:01:44.9]} 40.
Nxb3 {[%clk 0:01:13.1]} 40... Kc4 {[%clk 0:01:39.7]} 41. Na5+ {[%clk 0:01:11.6]}
41... Kc3 {[%clk 0:01:37.8]} 42. h5 {[%clk 0:01:10.4]} 42... b3 {[%clk
0:01:36.9]} 43. Nxb3 {[%clk 0:01:09.1]} 43... Kxb3 {[%clk 0:01:36.4]} 44. h6
{[%clk 0:01:08.7]} 44... gxh6 {[%clk 0:01:26.8]} 45. Kh5 {[%clk 0:01:07.9]}
45... d4 {[%clk 0:01:25.8]} 46. Kg4 {[%clk 0:00:59.8]} 46... d3 {[%clk
0:01:24.1]} 47. Kf3 {[%clk 0:00:59.1]} 47... Kc3 {[%clk 0:01:16.9]} 0-1

[Event "Live Chess"]
[Site "Chess.com"]
[Date "2023.05.21"]
[Round "-"]
[White "GMHarry-youtube"]
[Black "peter-785"]
[Result "1-0"]
[WhiteElo "2041"]
[BlackElo "1207"]
[TimeControl "300"]
[EndTime "17:54:42 PDT"]
[Termination "GMHarry-youtube won by resignation"]

1. e4 {[%clk 0:04:58.5]} 1... c5 {[%clk 0:04:59.2]} 2. Nf3 {[%clk 0:04:57.1]}
2... d6 {[%clk 0:04:58.7]} 3. Bb5+ {[%clk 0:04:55.3]} 3... Nd7 {[%clk
0:04:56.1]} 4. a4 {[%clk 0:04:53.6]} 4... a6 {[%clk 0:04:55.4]} 5. Be2 {[%clk
0:04:52.7]} 5... b6 {[%clk 0:04:53.2]} 6. d4 {[%clk 0:04:51.2]} 6... cxd4 {[%clk
0:04:48.3]} 7. Nxd4 {[%clk 0:04:51.1]} 7... Bb7 {[%clk 0:04:45]} 8. f3 {[%clk
0:04:50.2]} 8... e6 {[%clk 0:04:43.7]} 9. O-O {[%clk 0:04:48.5]} 9... Ngf6
{[%clk 0:04:39.8]} 10. c4 {[%clk 0:04:46.1]} 10... Be7 {[%clk 0:04:38.1]} 11.
Nc3 {[%clk 0:04:44.1]} 11... O-O {[%clk 0:04:34.1]} 12. Be3 {[%clk 0:04:42.7]}
12... Rc8 {[%clk 0:04:31.6]} 13. b3 {[%clk 0:04:42]} 13... Ne5 {[%clk
0:04:29.3]} 14. h3 {[%clk 0:04:38.9]} 14... Re8 {[%clk 0:04:21.6]} 15. f4 {[%clk
0:04:35.2]} 15... Nc6 {[%clk 0:04:14.3]} 16. Nxc6 {[%clk 0:04:31.3]} 16... Bxc6
{[%clk 0:04:08.7]} 17. Bd3 {[%clk 0:04:30.2]} 17... Qc7 {[%clk 0:04:02.7]} 18.
g4 {[%clk 0:04:23.1]} 18... Bb7 {[%clk 0:03:34.4]} 19. g5 {[%clk 0:04:17.5]}
19... Nd7 {[%clk 0:03:24.8]} 20. Qh5 {[%clk 0:04:12.1]} 20... g6 {[%clk
0:03:21.1]} 21. Qh6 {[%clk 0:04:10.6]} 21... Bf8 {[%clk 0:03:20.4]} 22. Qh4
{[%clk 0:04:09.2]} 22... Bg7 {[%clk 0:03:18.7]} 23. Rac1 {[%clk 0:04:07.2]}
23... Qc6 {[%clk 0:03:14.5]} 24. f5 {[%clk 0:04:06.2]} 24... exf5 {[%clk
0:03:12.7]} 25. Nd5 {[%clk 0:04:04]} 25... fxe4 {[%clk 0:02:54.2]} 26. Bxe4
{[%clk 0:03:51.4]} 26... Rxe4 {[%clk 0:02:37.1]} 27. Qxe4 {[%clk 0:03:49.1]}
27... Ne5 {[%clk 0:02:13.3]} 28. Ne7+ {[%clk 0:03:47]} 1-0